bitfinex-derivatives/quotes_ETHF0:USTF0_20250314
["timestamp","ask_amount","ask_price","bid_price","bid_amount"]
[1741962160034,1.05327,1899.0,1898.9,4.26109]
[1741962160233,1.05327,1899.0,1898.9,3.2078]
[1741962160434,5.7078,1899.0,1897.9,3.2078]
[1741962160629,1.05382,1898.0,1897.9,6.6446]
[1741962160932,1.05382,1898.0,1897.9,47.4446]
[1741962161324,1.05382,1898.0,1897.9,40.8]
[1741962161734,11.94722,1898.0,1897.9,40.8]
[1741962161938,3.21570535,1898.1,1897.9,40.8]
[1741962162232,0.00790535,1898.1,1898.0,11.5075]
[1741962162438,0.00790535,1898.1,1898.0,19.20592]
[1741962162634,1.06166535,1898.1,1898.0,18.1521]
[1741962163940,11.66016535,1898.1,1898.0,11.5075]
[1741962164436,0.00790535,1898.1,1898.0,12.56132]
[1741962165033,1.06166535,1898.1,1898.0,12.56132]
[1741962165230,0.00790535,1898.1,1898.0,12.56132]
[1741962166441,1.05359,1898.5,1898.1,2.63441]
[1741962166627,3.2078,1898.7,1898.3,2.63414]
[1741962166834,3.2078,1898.7,1898.4,11.3055]
[1741962167439,3.2078,1898.7,1898.6,1.05349]
[1741962167642,1.05332,1899.0,1898.8,1.05338]
[1741962167935,3.2078,1899.1,1899.0,1.05327]
[1741962168140,1.05321,1899.1,1899.0,41.85323]
[1741962168336,0.00790535,1899.2,1899.1,1.05321]
[1741962168527,1.06110535,1899.2,1899.0,44.0078]
[1741962168732,1.06109535,1899.2,1899.1,1.05321]
[1741962169040,0.00790535,1899.2,1899.0,44.0078]
[1741962169247,1.06109535,1899.2,1899.1,1.05321]
[1741962169737,0.00790535,1899.2,1899.1,1.05321]
[1741962170427,2.63197,1899.9,1899.1,3.55321]
[1741962170628,7.1498,1900.3,1899.5,3.2078]
[1741962170833,11.1916,1900.2,1899.7,3.2078]
[1741962171028,3.2078,1900.6,1899.9,3.2078]
[1741962171228,11.1916,1900.5,1899.9,3.2078]
[1741962171845,0.00790535,1900.4,1900.0,0.00790535]
[1741962172043,0.00790535,1900.4,1900.3,1.05254]
[1741962172234,0.00790535,1900.4,1900.0,0.00790535]
[1741962172535,0.00790535,1900.4,1900.3,1.05254]
[1741962172928,1.06043535,1900.4,1900.2,1.05258]
[1741962173242,0.00790535,1900.4,1900.0,0.00790535]
[1741962173435,0.00790535,1900.4,1900.1,3.2078]
[1741962173741,0.00790535,1900.4,1900.2,40.8]
[1741962174041,0.00790535,1900.4,1900.3,1.05254]
[1741962174233,0.00790535,1900.4,1900.2,40.8]
[1741962174733,0.00790535,1900.4,1900.3,1.05254]
[1741962175548,0.00790535,1900.4,1900.2,40.8]
[1741962175834,0.00790535,1900.4,1900.3,1.05254]
[1741962176243,1.06044535,1900.4,1900.2,1.0526]
[1741962176941,0.00790535,1900.4,1900.3,1.05254]
[1741962177137,1.05257,1900.3,1900.1,50.69063]
[1741962177339,0.00790535,1900.4,1900.1,49.638]
[1741962177540,1.05254,1900.3,1900.1,49.638]
[1741962177843,1.05254,1900.3,1900.1,50.69062]
[1741962178143,10.989,1900.3,1900.1,49.638]
[1741962178345,10.989,1900.3,1900.2,1.0526]
[1741962178541,10.989,1900.3,1900.0,0.00790535]
[1741962178840,1.05266,1900.1,1900.0,0.00790535]
[1741962179844,12.00906,1900.1,1900.0,0.00790535]
[1741962180638,12.00906,1900.1,1899.5,6.71686]
[1741962180639,19.35409,1900.1,1899.4,7.2558]
[1741962180843,3.2078,1900.0,1899.6,1.05289]
[1741962181040,12.0092,1899.9,1899.4,7.2558]
[1741962181241,1.05293,1899.6,1899.4,7.2558]
[1741962181539,12.00919,1899.9,1899.5,3.2078]
[1741962181844,1.05284,1899.8,1899.7,1.05284]
[1741962182047,11.75591,1899.9,1899.7,1.05284]
[1741962182346,11.75591,1899.9,1899.8,10.9845]
[1741962182738,11.75591,1899.9,1899.8,51.7845]
[1741962183338,10.7031,1899.9,1899.8,51.7845]
[1741962183640,10.7031,1899.9,1899.8,52.83732]
[1741962183839,1.05271,1900.0,1899.8,52.83728]
[1741962184142,1.05271,1900.0,1899.9,12.03724]
[1741962184343,3.2078,1900.3,1900.1,1.05264]
[1741962184543,4.26034,1900.3,1900.2,11.0791]
[1741962184743,1.05267,1900.1,1900.0,1.05269]
[1741962184942,10.7421,1900.2,1900.0,11.0791]
[1741962185238,11.79472,1900.2,1900.1,1.05266]
[1741962185445,1.05266,1900.1,1900.0,12.13177]
[1741962185643,1.05266,1900.1,1900.0,11.0791]
[1741962185841,3.2078,1900.1,1899.8,40.8]
[1741962186036,10.7421,1900.0,1899.5,6.97350535]
[1741962186253,3.2078,1899.9,1899.5,18.05260535]
[1741962186434,1.05293,1899.6,1899.5,19.10554535]
[1741962186742,1.05293,1899.6,1899.5,19.10555535]
[1741962186942,1.05289,1899.7,1899.6,1.0529]
[1741962187148,1.05293,1899.6,1899.5,59.90555535]
[1741962187351,10.9985,1899.6,1899.5,59.90555535]
[1741962187643,12.05143,1899.6,1899.5,59.90555535]
[1741962187833,5.83976,1899.9,1899.8,1.05282]
[1741962187834,3.2078,1899.9,1899.8,1.05282]
[1741962188035,0.00790535,1900.4,1899.5,58.85260535]
[1741962188036,10.9985,1900.2,1899.6,3.2078]
[1741962188246,2.63165,1900.1,1899.7,11.3767]
[1741962188435,10.9985,1900.0,1899.7,12.42956]
[1741962188746,1.05282,1899.8,1899.7,12.42956]
[1741962188947,1.05282,1899.8,1899.7,11.3767]
[1741962189647,1.05278,1899.9,1899.8,1.05279]
[1741962189846,3.2078,1900.0,1899.9,1.05277]
[1741962190149,1.05268,1900.1,1900.0,1.05268]
[1741962191147,1.0527,1900.1,1900.0,1.0527]
[1741962191451,10.9985,1900.3,1899.9,10.6322]
[1741962191652,1.05267,1900.1,1900.0,1.05267]
[1741962191839,1.05271,1900.0,1899.9,10.6322]
[1741962192044,11.73871,1900.0,1899.9,10.6322]
[1741962192850,14.94651,1900.0,1899.9,10.6322]
[1741962193053,16.52559,1900.0,1899.7,1.05285]
[1741962193254,11.73876,1900.0,1899.6,13.26453]
[1741962193551,1.05279,1899.9,1899.8,1.05278]
[1741962193853,1.05282,1899.8,1899.7,12.20136]
[1741962194049,1.05282,1899.8,1899.7,11.1485]
[1741962194354,1.05282,1899.8,1899.7,12.20138]
[1741962194752,11.73875,1900.0,1899.9,1.05277]
[1741962194954,3.2078,1900.3,1899.8,2.63205]
[1741962195253,1.05263,1900.2,1900.1,1.05266]
[1741962195462,14.4359,1900.3,1900.2,1.0526]
[1741962195754,4.26034,1900.3,1900.2,1.0526]
[1741962196055,4.26039,1900.3,1900.2,1.0526]
[1741962196256,15.48849,1900.3,1900.2,1.0526]
[1741962196556,1.0526,1900.2,1900.1,12.20112]
[1741962196951,1.0526,1900.2,1900.1,11.1485]
[1741962196952,12.5778,1900.2,1900.1,11.1485]
[1741962197152,12.5778,1900.2,1900.1,12.20116]
[1741962197555,11.5252,1900.2,1900.1,12.20116]
[1741962198758,12.5778,1900.2,1900.1,12.20116]
[1741962199257,11.5252,1900.2,1900.1,12.20116]
[1741962199857,12.5778,1900.2,1900.1,12.20116]
[1741962201358,1.05255,1900.3,1900.2,1.0526]
[1741962202160,1.05255,1900.3,1900.1,11.1485]
[1741962202161,0.00790535,1900.4,1900.1,14.3563]
[1741962202357,15.20329,1900.8,1900.3,1.05254]
[1741962202662,1.05234,1900.7,1900.6,1.05234]
[1741962203062,3.258,1901.1,1900.5,12.66885]
[1741962203259,23.637,1901.3,1900.7,3.2078]
[1741962203455,1.0521,1901.1,1901.0,1.05214]
[1741962203763,1.0521,1901.1,1900.8,10.6631]
[1741962203764,12.41436535,1901.2,1901.1,1.0521]
[1741962203956,11.36230535,1901.2,1901.1,1.0521]
[1741962204158,12.41435535,1901.2,1901.1,1.0521]
[1741962204462,0.00790535,1901.2,1901.1,1.0521]
[1741962204963,3.2078,1901.7,1901.3,1.05196]
[1741962205165,1.05188,1901.5,1901.4,10.6631]
[1741962205461,1.05188,1901.5,1901.4,51.4631]
[1741962205763,1.05188,1901.5,1901.4,52.51504]
[1741962206158,1.05188,1901.5,1901.4,51.4631]
[1741962206463,1.05188,1901.5,1901.4,52.51504]
[1741962206759,12.41416535,1901.6,1901.5,1.05188]
[1741962206952,1.05188,1901.5,1901.4,41.85189]
[1741962207361,1.05188,1901.5,1901.4,40.8]
[1741962207564,1.05195,1901.4,1901.3,1.05196]
[1741962207954,1.05195,1901.4,1901.3,41.85196]
[1741962208155,5.83751,1901.5,1901.0,6.83]
[1741962208457,1.0521,1901.1,1901.0,6.83]
[1741962208663,1.0521,1901.1,1901.0,7.88214]
[1741962209065,10.5223,1901.2,1901.1,1.0521]
[1741962209260,9.09351,1901.5,1901.0,10.0378]
[1741962209261,3.2078,1901.5,1901.0,10.0378]
[1741962209562,10.5223,1901.4,1901.0,10.0378]
[1741962209764,1.05199,1901.3,1901.2,1.05205]
[1741962209966,1.05202,1901.3,1901.2,1.05202]
[1741962210265,10.5223,1901.4,1900.9,2.63054]
[1741962210457,13.15216,1901.4,1901.0,7.0044]
[1741962210652,13.15216,1901.4,1900.8,5.84633535]
[1741962210653,1.05219,1901.0,1900.9,1.0522]
[1741962210864,1.05215,1901.1,1901.0,1.05214]
[1741962211057,3.2078,1901.5,1901.1,1.0521]
[1741962211257,1.05198,1901.4,1901.3,1.05197]
[1741962211457,3.2078,1902.2,1901.2,5.83784]
[1741962211771,1.05188,1901.5,1901.4,1.05188]
[1741962211964,1.05196,1901.4,1901.3,1.05195]
[1741962212162,1.05195,1901.4,1901.3,1.05194]
[1741962212467,2.62929,1901.8,1901.2,8.7619]
[1741962212666,16.88463,1901.7,1901.4,1.05193]
[1741962212866,1.05194,1901.4,1901.3,41.85194]
[1741962213465,1.05982535,1901.5,1901.4,1.05194]
[1741962213660,3.21570535,1901.5,1901.1,7.0044]
[1741962213866,1.0521,1901.1,1901.0,1.05211]
[1741962214061,1.05211,1901.2,1901.1,1.05207]
[1741962214360,0.00790535,1901.5,1900.9,43.43053]
[1741962214361,3.26090535,1901.5,1900.9,43.43053]
[1741962214673,12.09936,1901.4,1901.3,1.05199]
[1741962215260,1.05983535,1901.5,1901.4,1.05194]
[1741962215569,0.00790535,1901.5,1901.4,1.05194]
[1741962215765,0.00790535,1901.5,1901.4,4.25974]
[1741962217773,1.05978535,1901.5,1901.4,4.25974]
[1741962218068,1.05978535,1901.5,1901.3,12.8901]
[1741962218259,1.05978535,1901.5,1901.4,1.05194]
[1741962218770,0.00790535,1901.5,1901.4,1.05194]
[1741962219176,1.05179,1901.7,1901.6,1.05181]
[1741962219372,1.05175,1901.8,1901.4,1.05194]
[1741962219570,13.8983,1901.9,1901.3,18.72784]
[1741962219571,1.05177,1901.7,1901.3,18.72784]
[1741962219771,1.05176,1901.8,1901.7,1.05177]
[1741962220069,3.2078,1902.1,1901.5,5.83742]
[1741962220276,1.05168,1901.9,1901.8,1.0517]
[1741962220466,10.69840535,1902.0,1901.9,1.05166]
[1741962220667,1.05950535,1902.0,1901.9,1.05166]
[1741962221069,0.00790535,1902.0,1901.9,1.05166]
[1741962221472,0.00790535,1902.0,1901.9,4.25946]
[1741962222168,0.00790535,1902.0,1901.9,1.05166]
[1741962222469,0.00790535,1902.0,1901.9,11.61846]
[1741962222664,0.00790535,1902.0,1901.9,10.5668]
[1741962222863,1.05950535,1902.0,1901.9,11.61846]
[1741962223067,1.05950535,1902.0,1901.9,51.3668]
[1741962223480,1.05950535,1902.0,1901.9,11.61846]
[1741962223872,0.00790535,1902.0,1901.9,14.82626]
[1741962224076,3.2078,1902.6,1902.0,2.62895]
[1741962224283,1.05133,1902.5,1902.4,1.05135]
[1741962224477,1.05133,1902.5,1902.1,17.18088]
[1741962224672,11.3105,1902.7,1902.2,54.77293]
[1741962224979,11.3105,1902.7,1902.6,1.05127]
[1741962224980,12.36172,1902.7,1902.6,1.05127]
[1741962225182,0.0051933,1902.6,1902.3,9.81665]
[1741962225478,0.0051933,1902.6,1902.5,1.05127]
[1741962225775,0.0051933,1902.6,1902.5,4.25907]
[1741962226173,1.0564633,1902.6,1902.5,3.2078]
[1741962226577,0.0051933,1902.6,1902.5,4.25913]
[1741962227470,1.0564633,1902.6,1902.5,4.25913]
[1741962227674,1.0564633,1902.6,1902.5,14.73153]
[1741962227880,0.0051933,1902.6,1902.5,14.73153]
[1741962228375,1.0564633,1902.6,1902.5,13.6802]
[1741962228681,0.0051933,1902.6,1902.5,11.52373]
[1741962230774,11.0666,1903.0,1902.9,1.05111]
[1741962230975,4.413,1903.4,1903.0,1.05104]
[1741962230976,1.05104,1903.1,1903.0,1.05104]
[1741962231184,1.05107,1903.0,1902.9,1.05107]
[1741962231380,10.9658,1903.1,1903.0,1.05105]
[1741962231575,12.01684,1903.1,1902.9,11.1738]
[1741962231878,12.01684,1903.1,1903.0,1.05105]
[1741962232081,1.05096,1903.2,1903.1,1.05097]
[1741962232278,10.9658,1903.2,1902.9,11.1738]
[1741962232475,10.9658,1903.2,1903.1,1.051]
[1741962232784,4.413,1903.7,1903.0,5.83544]
[1741962232986,11.89091,1903.5,1903.1,10.9767]
[1741962233182,1.05085,1903.4,1903.1,10.9767]
[1741962233377,10.8401,1903.5,1903.4,1.05083]
[1741962233580,1.0507,1903.7,1903.5,1.05075]
[1741962233780,11.027,1903.9,1903.5,1.05075]
[1741962233781,10.8401,1903.6,1903.5,1.05075]
[1741962233979,3.2078,1905.1,1903.8,3.2078]
[1741962234176,3.2078,1905.1,1904.2,5.25193]
[1741962234177,0.41995516,1905.1,1904.2,5.25193]
[1741962234382,0.41995516,1905.0,1904.9,1.05]
[1741962234586,10.8401,1905.0,1904.9,1.05]
[1741962234791,11.26005516,1905.0,1904.8,1.05004]
[1741962234983,0.41995516,1904.9,1904.6,3.2078]
[1741962235290,0.41995516,1904.9,1904.7,1.05009]
[1741962235584,0.41995516,1904.8,1904.7,1.05009]
[1741962235787,0.41995516,1904.8,1904.6,3.2078]
[1741962235788,0.41995516,1904.9,1904.8,1.05006]
[1741962236378,0.41995516,1904.9,1904.6,3.2078]
[1741962236584,0.41995516,1904.8,1904.6,3.2078]
[1741962236786,0.41995516,1904.9,1904.6,3.2078]
[1741962237094,0.41995516,1904.9,1904.8,1.05006]
[1741962237387,11.3762,1905.2,1905.0,1.04992]
[1741962237588,11.79615516,1905.2,1905.0,1.04991]
[1741962237893,1.05006,1904.8,1904.6,3.2078]
[1741962238092,1.05011,1904.7,1904.6,3.2078]
[1741962238486,1.05028,1904.4,1904.3,0.00788395]
[1741962238807,0.41995516,1904.6,1904.3,0.00788395]
[1741962239087,10.9016,1904.6,1904.3,0.00788395]
[1741962239282,1.05028,1904.4,1904.3,0.00788395]
[1741962239696,11.32155516,1904.4,1904.3,0.00788395]
[1741962239892,11.32155516,1904.4,1904.3,1.05821395]
[1741962240081,1.05021,1904.6,1904.4,1.05025]
[1741962240285,10.9016,1904.7,1904.3,3.21568395]
[1741962240586,10.9016,1904.7,1904.6,1.05017]
[1741962241093,1.05028,1904.4,1904.3,0.00788395]
[1741962241586,1.47023516,1904.4,1904.3,0.00788395]
[1741962242983,3.62775516,1904.4,1903.9,1.05054]
[1741962243192,3.62775516,1904.4,1903.6,5.86679]
[1741962243193,2.62598,1904.2,1903.7,1.05065]
[1741962243394,2.62598,1904.2,1904.0,1.0505]
[1741962243395,10.8239,1904.1,1904.0,1.0505]
[1741962243690,0.41995516,1904.2,1903.8,5.8343]
[1741962243896,0.41995516,1904.1,1904.0,1.05046]
[1741962244090,0.41995516,1904.1,1903.9,1.05052]
[1741962244284,11.24385516,1904.0,1903.9,1.05840395]
[1741962244484,11.8744,1904.0,1903.9,0.00788395]
[1741962244787,1.05831395,1904.2,1903.9,0.00788395]
[1741962244998,1.0505,1904.0,1903.9,0.00788395]
[1741962245397,13.07555516,1904.0,1903.9,0.00788395]
[1741962245594,1.05072,1903.6,1903.4,4.25859]
[1741962245785,11.6051,1903.5,1903.4,3.2078]
[1741962245990,11.6051,1903.5,1903.4,1.05083]
[1741962246307,3.2078,1903.9,1903.3,12.733]
[1741962246486,11.6051,1903.8,1903.7,1.05066]
[1741962246692,11.6051,1903.8,1903.6,40.8]
[1741962247298,4.28953,1904.0,1903.6,40.8]
[1741962247505,11.6051,1903.9,1903.6,40.8]
[1741962248204,12.65565,1903.9,1903.7,1.05062]
[1741962248400,11.6051,1903.9,1903.8,1.05061]
[1741962248596,11.6051,1903.9,1903.6,44.0078]
[1741962248900,1.05064,1903.8,1903.6,41.8507]
[1741962249095,11.4909,1903.7,1903.6,41.8507]
[1741962249299,0.00788395,1904.2,1903.6,44.0078]
[1741962249487,1.05066,1903.7,1903.6,40.8]
[1741962249689,1.05066,1903.7,1903.4,3.21568395]
[1741962249690,6.4458,1903.9,1903.4,0.00788395]
[1741962249886,4.25858,1903.5,1903.4,0.00788395]
[1741962250103,4.25858,1903.5,1903.4,0.00264785]
[1741962250602,1.05078,1903.5,1903.4,0.00264785]
[1741962251591,3.2078,1903.7,1903.4,0.00264785]
[1741962251897,12.24932,1904.0,1903.8,1.05059]
[1741962252105,11.1988,1904.0,1903.6,6.567]
[1741962252300,1.05056,1903.9,1903.8,1.05059]
[1741962252597,1.05061,1903.8,1903.7,10.6038]
[1741962252798,3.2078,1904.0,1903.7,10.6038]
[1741962253296,0.00788395,1904.2,1903.7,13.8116]
[1741962253494,1.05048,1904.1,1903.9,1.05052]
[1741962253692,11.20668395,1904.2,1904.0,10.6038]
[1741962253894,12.25707395,1904.2,1904.1,1.05044]
[1741962254093,11.20668395,1904.2,1903.6,6.567]
[1741962254299,1.05058,1903.9,1903.7,12.43005]
[1741962254492,1.05054,1904.0,1903.8,1.05059]
[1741962254809,11.20668395,1904.2,1904.1,1.05044]
[1741962255292,0.00788395,1904.2,1904.1,1.05044]
[1741962255491,10.8683,1904.5,1904.1,4.25824]
[1741962255696,6.7403,1904.7,1904.5,1.05017]
[1741962255697,11.91843,1904.7,1904.5,1.05017]
[1741962255998,11.91843,1904.7,1904.6,12.42957]
[1741962256203,11.91843,1904.7,1904.6,11.3794]
[1741962256700,10.8683,1904.7,1904.6,12.42957]
[1741962256894,1.05017,1904.6,1904.5,0.00788395]
[1741962257299,11.69657,1904.6,1904.5,0.00788395]
[1741962258295,11.69657,1904.6,1904.5,1.05810395]
[1741962258500,1.05017,1904.6,1904.5,1.05810395]
[1741962258903,11.69655,1904.7,1904.6,1.05017]
[1741962259110,11.69655,1904.7,1904.6,12.14907]
[1741962260099,11.69655,1904.7,1904.6,11.0989]
[1741962260508,1.05017,1904.6,1904.5,0.00788395]
[1741962260909,10.6464,1904.7,1904.5,10.62508395]
[1741962261115,0.00788395,1904.8,1904.5,10.62508395]
[1741962261116,0.00788395,1904.8,1904.5,18.95837395]
[1741962261313,1.04999,1905.0,1904.9,1.04999]
[1741962261509,11.36,1905.1,1904.8,10.6172]
[1741962261706,12.40994,1905.1,1904.8,10.6172]
[1741962261903,1.04999,1905.0,1904.8,10.6172]
[1741962262106,12.40991,1905.1,1905.0,1.04995]
[1741962262309,11.36,1905.1,1905.0,1.04995]
[1741962262507,1.05508611,1905.2,1905.1,1.04989]
[1741962262809,8.87276687,1905.9,1905.1,1.04989]
[1741962262810,1.04975,1905.4,1905.3,1.04976]
[1741962263016,1.04978,1905.3,1905.2,10.6172]
[1741962263411,1.04978,1905.3,1905.2,52.46704]
[1741962263916,11.59726,1905.4,1905.3,1.04978]
[1741962264115,1.04978,1905.4,1905.3,1.04978]
[1741962264414,3.2078,1905.6,1905.2,51.4172]
[1741962264616,10.5475,1905.7,1905.4,1.04969]
[1741962264811,1.04962,1905.6,1905.5,10.9604]
[1741962265015,1.04978,1905.3,1905.2,40.8]
[1741962265210,1.04989,1905.1,1905.0,1.0499]
[1741962265511,3.2078,1905.6,1904.9,3.2078]
[1741962265711,1.04976,1905.4,1905.3,1.04974]
[1741962266216,1.04954,1905.8,1905.7,1.04953]
[1741962266516,1.04957,1905.7,1905.6,1.04956]
[1741962266715,1.04957,1905.7,1905.6,1.05744395]
[1741962267018,1.04957,1905.7,1905.6,41.85744395]
[1741962267202,11.77743,1905.8,1905.7,1.04956]
[1741962267408,11.77741,1905.8,1905.7,1.04956]
[1741962267607,11.77741,1905.8,1905.6,40.80788395]
[1741962267608,3.2078,1906.0,1905.6,43.43185395]
[1741962267811,1.04948,1905.9,1905.8,1.04948]
[1741962268015,7.1565,1906.6,1906.0,1.0494]
[1741962268214,10.7279,1906.5,1905.9,8.7848]
[1741962268420,1.04931,1906.2,1906.1,1.04934]
[1741962268613,1.04926,1906.3,1906.0,7.2121]
[1741962268828,13.35072,1906.5,1906.0,7.2121]
[1741962269017,13.9357,1906.5,1906.1,1.04932]
[1741962269218,13.9357,1906.5,1906.0,7.2121]
[1741962269219,10.7279,1906.5,1906.0,7.2121]
[1741962269620,13.35072,1906.5,1906.1,1.04934]
[1741962269817,16.55852,1906.5,1906.0,7.2121]
[1741962270019,2.62295,1906.4,1906.0,8.26146]
[1741962270319,1.04934,1906.1,1906.0,7.2121]
[1741962270521,10.6781,1906.3,1906.0,7.2121]
[1741962270821,3.2078,1906.7,1906.4,1.04918]
[1741962271010,13.8859,1906.7,1906.4,1.04912]
[1741962271314,13.8859,1906.7,1906.3,3.2078]
[1741962271519,13.8859,1906.7,1906.4,1.04914]
[1741962271520,1.04912,1906.5,1906.4,1.04914]
[1741962272510,3.2078,1906.7,1906.6,1.04907]
[1741962272716,1.049,1906.8,1906.4,5.83075]
[1741962273015,11.2051,1906.9,1906.6,1.04907]
[1741962273212,11.2051,1906.9,1906.4,3.2078]
[1741962273416,1.04904,1906.7,1906.6,1.05693395]
[1741962273623,1.049,1906.8,1906.7,1.049]
[1741962273817,11.2051,1906.9,1906.6,4.26473395]
[1741962274024,1.04897,1906.8,1906.7,1.04898]
[1741962274214,3.2078,1907.5,1907.3,1.04866]
[1741962274419,3.2078,1907.5,1906.9,9.05806]
[1741962274612,11.2051,1907.6,1907.0,2.62211]
[1741962274818,11.2051,1907.6,1907.1,5.82977]
[1741962275016,11.2051,1907.6,1907.4,1.0486]
[1741962275214,11.2051,1907.6,1907.1,3.2078]
[1741962275418,3.2078,1908.1,1907.5,3.2078]
[1741962275616,3.2078,1908.4,1907.8,3.2078]
[1741962275821,3.2078,1908.4,1907.6,9.70125]
[1741962275822,14.1864,1908.2,1907.6,10.2878]
[1741962276021,1.0483,1908.0,1907.9,0.00786246]
[1741962276329,4.2561,1908.0,1907.9,0.00786246]
[1741962276519,3.2078,1908.0,1907.9,1.05621246]
[1741962276715,1.0482,1908.2,1908.0,1.04826]
[1741962276925,1.04827,1908.1,1907.9,4.26401246]
[1741962277223,1.04827,1908.1,1907.9,4.26399246]
[1741962277429,14.1864,1908.4,1908.0,40.8]
[1741962277626,1.04824,1908.1,1908.0,40.8]
[1741962278527,14.1864,1908.2,1907.9,0.00786246]
[1741962278717,12.4732,1908.0,1907.9,0.00786246]
[1741962279019,3.2078,1908.5,1907.9,44.03286246]
[1741962279421,1.04821,1908.2,1908.0,1.0483]
[1741962279625,1.04821,1908.2,1908.1,1.04824]
[1741962280023,1.04828,1908.1,1907.9,45.08117246]
[1741962280223,1.0483,1908.0,1907.9,3.23286246]
[1741962280524,11.4249,1908.1,1907.9,1.05621246]
[1741962280719,11.4249,1908.1,1907.9,0.00786246]
[1741962281024,1.0483,1908.0,1907.9,1.05619246]
[1741962281319,1.0483,1908.0,1907.9,0.00786246]
[1741962281516,11.4249,1908.1,1907.9,0.00786246]
[1741962281912,12.47316,1908.1,1907.9,0.00786246]
[1741962282122,12.47316,1908.1,1907.9,1.05620246]
[1741962282123,1.0483,1908.0,1907.9,1.05620246]
[1741962282726,1.0483,1908.0,1907.9,0.00786246]
[1741962283830,11.4249,1908.1,1907.9,0.00786246]
[1741962284023,1.0483,1908.0,1907.9,1.05619246]
[1741962284219,1.0483,1908.0,1907.9,1.05618246]
[1741962284522,1.0483,1908.0,1907.9,0.00786246]
[1741962285118,11.4249,1908.1,1908.0,1.0483]
[1741962285318,12.47314,1908.1,1908.0,11.5116]
[1741962285825,1.0483,1908.0,1907.9,0.00786246]
[1741962286620,1.04852,1907.6,1907.5,52.3116]
[1741962287022,10.5671,1907.9,1907.5,52.3116]
[1741962287329,1.04852,1907.6,1907.5,53.36012]
[1741962287527,1.04852,1907.7,1907.5,52.3116]
[1741962287727,1.04852,1907.6,1907.5,53.36016]
[1741962287926,1.05629083,1907.7,1907.6,1.04852]
[1741962288123,1.04852,1907.6,1907.5,53.36013]
[1741962288331,1.04852,1907.6,1907.5,52.3116]
[1741962288631,1.04852,1907.6,1907.5,53.36017]
[1741962288827,1.04852,1907.6,1907.5,52.3116]
[1741962289029,1.04852,1907.6,1907.5,40.8]
[1741962289730,1.04852,1907.6,1907.5,52.93527]
[1741962290031,1.04852,1907.6,1907.5,51.8867]
[1741962290230,12.34715083,1907.7,1907.6,1.04852]
[1741962290532,0.00779083,1907.7,1907.6,4.25632]
[1741962290832,0.00779083,1907.7,1907.6,9.67282]
[1741962291222,1.05625083,1907.7,1907.6,9.67282]
[1741962291536,1.04852,1907.6,1907.5,51.8867]
[1741962291724,12.21402,1907.6,1907.5,51.8867]
[1741962292831,1.04857,1907.5,1907.4,0.00786246]
[1741962293129,11.1655,1907.6,1907.5,1.04857]
[1741962293330,11.1655,1907.6,1907.5,41.84857]
[1741962293517,12.21402,1907.6,1907.5,41.84857]
[1741962294018,11.1655,1907.6,1907.5,41.84857]
[1741962294225,1.05627083,1907.7,1907.6,1.04852]
[1741962294418,1.05625083,1907.7,1907.6,11.0559]
[1741962294733,1.05625083,1907.7,1907.6,12.10442]
[1741962295230,1.05625083,1907.7,1907.6,11.0559]
[1741962295426,1.04852,1907.6,1907.5,41.84857]
[1741962295625,1.04852,1907.6,1907.5,52.90447]
[1741962295823,12.47569083,1907.7,1907.6,1.04852]
[1741962296031,11.42719083,1907.7,1907.5,55.0637]
[1741962296238,0.00779083,1907.7,1907.6,1.04852]
[1741962296533,1.05625083,1907.7,1907.6,1.04852]
[1741962296734,0.00779083,1907.7,1907.6,1.04852]
[1741962297935,0.00779083,1907.7,1907.6,6.51292]
[1741962298632,6.6861,1908.2,1908.1,1.04818]
[1741962298633,1.04821,1908.2,1908.1,1.04818]
[1741962298822,10.6515,1908.3,1907.8,3.2078]
[1741962299024,1.04832,1908.0,1907.9,12.12841]
[1741962299429,10.6515,1908.3,1907.9,11.0801]
[1741962299625,10.6515,1908.3,1908.0,6.9099]
[1741962299832,11.70749246,1908.3,1908.2,1.04819]
[1741962300025,0.00786246,1908.3,1908.2,4.25599]
[1741962300237,0.33819762,1909.0,1908.2,5.7078]
[1741962300533,5.82489,1910.7,1910.1,1.04714]
[1741962300731,5.82489,1910.7,1909.2,5.23813]
[1741962300732,0.3302291,1910.7,1910.3,3.2078]
[1741962300931,11.5777,1910.6,1910.3,3.2078]
[1741962301236,1.04713,1910.2,1910.1,3.2078]
[1741962301427,1.04709,1910.2,1910.1,3.2078]
[1741962301732,6.4238,1910.2,1909.5,3.2078]
[1741962301939,11.5777,1910.1,1909.6,11.2543]
[1741962302238,1.0473,1909.9,1909.6,11.2543]
[1741962302438,14.7855,1910.1,1909.6,11.2543]
[1741962302641,3.2078,1910.4,1909.7,3.2078]
[1741962302831,3.2078,1910.4,1909.9,1.04723]
[1741962302832,0.00786246,1910.0,1909.9,1.04723]
[1741962303027,0.00786246,1910.0,1909.8,11.2179]
[1741962303634,0.00786246,1910.0,1909.9,40.8]
[1741962303845,0.00786246,1910.0,1909.9,45.05505]
[1741962304133,9.16258,1910.8,1909.9,55.6928]
[1741962304134,1.04677,1910.8,1909.9,55.6928]
[1741962304338,3.2078,1912.0,1910.8,2.61683]
[1741962304540,3.2078,1912.0,1911.3,3.2078]
[1741962304541,10.6153,1911.8,1911.3,3.2078]
[1741962304733,1.04638,1911.5,1911.4,11.2179]
[1741962304938,1.04638,1911.5,1910.9,0.65791183]
[1741962304939,1.04665,1911.0,1910.9,0.65791183]
[1741962305235,3.2078,1911.2,1910.7,4.25457]
[1741962305536,1.04671,1910.9,1910.8,11.22576246]
[1741962305735,11.3447,1911.1,1910.8,11.22576246]